Cogmind - Beta 15 @@@ ROGUE MODE // 2025.05.29 @ 22:50:47 Player: Xenocore Result: Destroyed by DU-22E(R) with Subdweller Machine Gun Performance ------------- Evolutions (0) 0 Regions Visited (2) 400 Robots Destroyed (21) 105 Value Destroyed (591) 591 Prototype IDs (0) 0 Alien Tech Used (0) 0 Bonus (-62) -62 TOTAL SCORE: 1034 Bonus ------- Friendly Fire -62 Cogmind --------- Core Integrity 0/250 Matter 96/300 Energy 97/100 System Corruption 0% Temperature Cool (6) Movement Walking (120) Location -10/Subcaves Parts ------- > --- POWER (1) -------- (None) > --- PROPULSION (2) --- Myomer Leg > --- UTILITY (2) ------ Large Storage Unit > --- WEAPON (2) ------- Battle Cannon > --- INVENTORY (15) --- Cooled Ion Engine Cooled Ion Engine Cooled Ion Engine Improved Heat Sink High-capacity Storage Unit Improved EM Shotgun Improved EM Shotgun Improved EM Shotgun Improved EM Shotgun Subdweller Machine Gun Battle Cannon Battle Cannon Peak State ------------ > --- POWER ------------ Neutrino Core > --- PROPULSION ------- Carbon-fiber Leg Myomer Leg > --- UTILITY ---------- Large Storage Unit > --- WEAPON ----------- Battle Cannon Bore Cannon > --- INVENTORY -------- Cooled Ion Engine Cooled Ion Engine Cooled Ion Engine Improved Heat Sink High-capacity Storage Unit Improved EM Shotgun Improved EM Shotgun Improved EM Shotgun Improved EM Shotgun Battle Cannon Scrap Shield Fragment Scrap Shield Fragment [Rating: 27] Favorites ----------- Power Ion Engine Engine Ion Engine Power Core Neutrino Core Propulsion Light Treads Treads Light Treads Leg Myomer Leg Wheel Subdweller Monowheel Utility Large Storage Unit Device Structural Scanner Storage Large Storage Unit Weapon Assault Rifle Energy Gun EM Pulse Gun Ballistic Gun Assault Rifle Ballistic Cannon Bore Cannon Launcher Subdweller Shrapnel Launcher Build | -11 -10 -10 ------- Run | Yrd Mat Sub Slots Evolved . | . . . Power . | . . . Propulsion . | . . . Utility . | . . . Weapon . | . . . Parts Attached 28 | 7 10 11 Power 3 | 1 1 1 Engine 2 | 1 1 . Core 1 | . . 1 Reactor . | . . . Propulsion 8 | 2 2 4 Treads 4 | 2 2 . Leg 2 | . . 2 Wheel 2 | . . 2 Hover . | . . . Flight . | . . . Utility 5 | 2 3 . Device 2 | . 2 . Storage 3 | 2 1 . Processor . | . . . Hackware . | . . . Protection . | . . . Artifact . | . . . Weapon 12 | 2 4 6 Energy Gun 1 | 1 . . Energy Cannon . | . . . Ballistic Gun 6 | 1 4 1 Ballistic Cannon 2 | . . 2 Launcher 3 | . . 3 Special Weapon . | . . . Impact Weapon . | . . . Slashing Weapon . | . . . Piercing Weapon . | . . . Special Melee Weapon . | . . . Unidentified Prototypes . | . . . Parts Lost 11 | . . 11 Power 1 | . . 1 Propulsion 4 | . . 4 Utility 1 | . . 1 Weapon 5 | . . 5 Highest Loss Streak 7 | . . 7 To Critical Strikes . | . . . Average Backups 12 | 3 13 13 Power 2 | . 2 3 Propulsion 1 | 1 2 1 Utility 1 | . 1 2 Weapon 6 | . 7 7 Tool/Special . | . . . Unused Backups 23 | . 6 17 Power 6 | . 2 4 Propulsion 3 | . 2 1 Utility 5 | . 2 3 Weapon 9 | . . 9 Tool/Special . | . . . Average Slot Usage (%) 97 | . 99 95 Engine 7 | . 14 1 Core 6 | . . 12 Treads 23 | . 27 18 Leg 3 | . . 6 Device 11 | . 12 10 Storage 14 | . 15 14 Ballistic Gun 19 | . 27 10 Ballistic Cannon 5 | . . 11 Launcher 2 | . . 5 Peak Build Rating 27 | 7 10 27 Average Rating 14 | 6 9 20 On Entrance 5 | . 7 10 Naked Turns . | . . . Heaviest Build 46 | 16 34 46 Greatest Support 40 | 40 40 40 Greatest Overweight (x) 1 | . 1 1 Average Overweight (x) . | . . . Largest Inventory Capacity 15 | 8 15 15 Average Capacity 14 | 7 14 15 Most Carried 15 | 5 15 15 Average Carried 12 | 3 13 13 Final Capacity 15 | 8 15 15 Final Carried 15 | 4 15 12 Class Distribution -------------------- 85% | Mutant 14% | Scavenger-Mutant Dominant Class ---------------- Mutant | -10/Materials Mutant | -10/Subcaves Resources | -11 -10 -10 ----------- Run | Yrd Mat Sub Matter Collected 984 | 266 237 481 Remotely . | . . . Salvage Created 609 | 86 262 261 Parts 41 | 3 17 21 Haulers Intercepted 2 | . 2 . Recyclers Shooed . | . . . Parts Field Recycled . | . . . Retrieved Matter . | . . . Parts Self-Destructed 9 | . . 9 Prevented . | . . . Kills | -11 -10 -10 ------- Run | Yrd Mat Sub Combat Hostiles Destroyed 18 | . 7 11 Guns 11 | . 7 4 Cannons 4 | . . 4 AOE 3 | . . 3 Classes Destroyed 6 | 1 3 2 Hauler 2 | . 2 . Recycler 1 | 1 . . Swarmer 4 | . 4 . Grunt 4 | . 3 1 Sentry 1 | . . 1 Subdweller 9 | . . 9 Best Kill Streak 3 | 1 3 3 Combat Bots Only 3 | . 3 3 Max Kills in Single Turn 1 | 1 1 1 Gunslinging . | . . . Exploded 1 | . . 1 Melee . | . . . Uniques/NPCs Destroyed . | . . . Combat | -11 -10 -10 -------- Run | Yrd Mat Sub Hostile Shots Fired 129 | . 42 87 Missed 41 | . 11 30 Hits 88 | . 31 57 Projectile 88 | . 31 57 Critical Strikes 1 | . . 1 Damage Taken 1647 | . 281 1366 Core 254 | . 52 202 Absorbed by Shields . | . . . Core Remaining (%) 100 | 100 . . Volleys Fired 67 | 1 22 44 Largest 2 | 2 2 2 Hottest 81 | 60 40 81 Shots Fired 122 | 2 44 76 Gun 74 | 2 44 28 Cannon 26 | . . 26 Launcher 22 | . . 22 Special . | . . . Kinetic 105 | 1 44 60 Thermal . | . . . Explosive 16 | . . 16 Electromagnetic 1 | 1 . . Robot Hit Streak 14 | 2 5 14 Robot Miss Streak 4 | . 4 3 Penetration Max 1 | . . 1 Secondary Targets 1 | . 1 . Max Gunslinging Chain 1 | . 1 . Shots Hit Robots 74 | 2 26 46 Core Hits 39 | 2 14 23 Critical Kills 1 | . . 1 Critical Parts Destroyed 2 | . . 2 Critical Strikes 8 | . . 8 Destroy 8 | . . 8 Melee Attacks . | . . . Impact . | . . . Slashing . | . . . Piercing . | . . . Sneak Attacks . | . . . Combat Hostiles . | . . . Follow-up Attacks . | . . . Damage Inflicted 1767 | 22 326 1419 Guns 611 | 22 326 263 Cannons 371 | . . 371 Explosions 785 | . . 785 Melee . | . . . Ramming . | . . . Kinetic 1464 | 9 326 1129 Thermal . | . . . Explosive 290 | . . 290 Electromagnetic 13 | 13 . . Impact . | . . . Slashing . | . . . Piercing . | . . . Highest Corruption . | . . . Average Corruption . | . . . Corruption Purged . | . . . Corruption Blocked . | . . . Overload Shots . | . . . Overflow Damage 19 | . . 19 Projectiles . | . . . Explosions 19 | . . 19 Melee . | . . . Knockbacks 6 | . . 6 Impact . | . . . Kinetic 6 | . . 6 Secondary . | . . . Self-Inflicted Damage 165 | . . 165 Shots 7 | . . 7 Rammed . | . . . Targets Rammed . | . . . Kicked . | . . . Crushed . | . . . Highest Temperature 10 | 10 . 5 Average Temperature 5 | 7 . 4 Received Heat Transfer 153 | . 72 81 Siege Activations . | . . . Martial Activations . | . . . Shielding Activations . | . . . Robots Disrupted . | . . . Combat Hostiles . | . . . Robots Corrupted . | . . . Combat Hostiles . | . . . Parts Fried . | . . . Impact Corruptions . | . . . Robots Melted . | . . . Combat Hostiles . | . . . Parts Melted . | . . . Heat Transferred . | . . . Parts Sabotaged . | . . . Parts Stolen . | . . . Parts Stripped . | . . . Power Chain Reactions . | . . . Alert | -11 -10 -10 ------- Run | Yrd Mat Sub Maximum Alert Level . | . . . Low Security (%) 100 | 100 100 . Level 1 . | . . . Level 2 . | . . . Level 3 . | . . . Level 4 . | . . . Level 5 . | . . . High Security . | . . . Max Security . | . . . Peak Influence 70 | 5 70 . Initial . | . . . Average 6 | . 7 . Influence Increases 256 | 5 211 40 Destroy 0b10 Robot/C 180 | . 140 40 Destroy 0b10 Robot/NC 15 | 5 10 . Destroy Leader 44 | . 44 . Successful Hack 2 | . 2 . Lose Combat Pursuer 15 | . 15 . Influence Decreases 256 | 5 211 40 Time Decay 256 | 5 211 40 Squads Dispatched 3 | . 3 . Investigation 2 | . 2 . Extermination . | . . . Reinforcement 1 | . 1 . Assault . | . . . Garrison . | . . . Intercept . | . . . Searches Triggered . | . . . Construction Impeded . | . . . Haulers Reinforced . | . . . Active Scanning Responses . | . . . Cargo Convoy Interrupts . | . . . Stealth | -11 -10 -10 --------- Run | Yrd Mat Sub Distress Signals 2 | . 2 . Communications Jammed . | . . . Distress Signals . | . . . Times Spotted 32 | . 8 24 Peak Tracking Total 7 | . 3 7 Tactical Retreats 1 | . 1 . Traps | -11 -10 -10 ------- Run | Yrd Mat Sub Traps Triggered 2 | . 2 . Indirectly . | . . . Trap Hack Attempts . | . . . Triggered . | . . . Disarmed . | . . . Reprogrammed . | . . . Reused . | . . . Traps Extracted . | . . . Installed . | . . . Triggered . | . . . Machines | -11 -10 -10 ---------- Run | Yrd Mat Sub Machines Disabled . | . . . Max in Single Turn . | . . . Machines Repaired . | . . . Machines Dismantled . | . . . Machines Sabotaged . | . . . Overloaded Fab Kills . | . . . Hacking | -11 -10 -10 --------- Run | Yrd Mat Sub Machines Accessed 3 | . 3 . Terminals 3 | . 3 . Fabricators . | . . . Repair Stations . | . . . Recycling Units . | . . . Scanalyzers . | . . . Garrison Access . | . . . Total Hacks 5 | . 5 . Successful 2 | . 2 . Failed 3 | . 3 . Catastrophic 1 | . 1 . Database Lockouts . | . . . Manual . | . . . Terminals 5 | . 5 . Fabricators . | . . . Repair Stations . | . . . Recycling Units . | . . . Scanalyzers . | . . . Garrison Access . | . . . Terminal Hacks 2 | . 2 . Record 2 | . 2 . Fabricator Hacks . | . . . Repair Station Hacks . | . . . Recycling Unit Hacks . | . . . Scanalyzer . | . . . Garrison Access Hacks . | . . . Unauthorized Hacks . | . . . Terminals . | . . . Fabricators . | . . . Repair Stations . | . . . Recycling Units . | . . . Scanalyzers . | . . . Garrison Access . | . . . Data Cores Recovered . | . . . Used . | . . . Hacking Detections 2 | . 2 . Full Trace Events . | . . . Feedback Events . | . . . Feedback Blocked . | . . . Robot Schematics Acquired . | . . . Robots Built . | . . . Authchips . | . . . Time . | . . . Total Robot Build Rating . | . . . Part Schematics Acquired . | . . . Parts Built . | . . . Authchips . | . . . Time . | . . . Total Part Build Rating . | . . . Parts Repaired . | . . . Time . | . . . Parts Recycled . | . . . Recycled Matter . | . . . Retrieved Matter . | . . . Retrieved Components . | . . . Parts Scanalyzed . | . . . Part Schematics Acquired . | . . . Parts Damaged . | . . . Bothacking | -11 -10 -10 ------------ Run | Yrd Mat Sub Used RIF Installer . | . . . Robots Hacked . | . . . Non-combat . | . . . Combat . | . . . Robot Hacks Applied . | . . . Relay Couplers Released . | . . . Fabnet Peak Effective % . | . . . Robots Rewired . | . . . Allies Hacked . | . . . Hacks Repelled . | . . . Allies | -11 -10 -10 -------- Run | Yrd Mat Sub Total Allies . | . . . Largest Group . | . . . Highest-Rated Group . | . . . Highest-Rated Ally . | . . . Total Orders . | . . . Ally Attacks . | . . . Total Damage . | . . . Kills . | . . . Allies Corrupted . | . . . Allies Melted . | . . . Intel | -11 -10 -10 ------- Run | Yrd Mat Sub Active Infowar (turns) 3254 | . 1796 1458 Structural 2867 | . 1409 1458 Seismic 387 | . 387 . Robot Analysis Total . | . . . Derelict Logs Recovered 1 | . . 1 Drone Launches . | . . . Drone Recoveries . | . . . Exploration | -11 -10 -10 ------------- Run | Yrd Mat Sub Turns Passed 4264 | 348 1948 1968 Spaces Moved 2083 | 185 1012 886 Core 13 | 13 . . Treads 1727 | 172 1012 543 Legs 244 | . . 244 Wheels 99 | . . 99 Hover . | . . . Flight . | . . . Fastest Speed 50 | 50 160 110 Average Speed 177 | 152 161 202 Slowest Speed 240 | 160 240 240 Overloaded Moves . | . . . Propulsion Burnouts . | . . . Robots Hopped . | . . . Potential Cave-ins . | . . . Cave-ins Triggered . | . . . Exploration Rate (%) 51 | 9 100 44 Regions Visited 2 Branch Regions 1 Pre-discovered Areas 2 | . . 2 Known Exits Taken . | . . . Unknown Exits Taken 2 | 1 1 . Scrap Searched 13 | . . 13 Spaces Dug . | . . . Terrain Destroyed 136 | . . 136 Melee . | . . . Projectile 7 | . . 7 AOE 129 | . . 129 Terrain Rammed . | . . . Walls Destroyed . | . . . Machines Disabled . | . . . Actions | -11 -10 -10 --------- Run | Yrd Mat Sub Total 2530 | 250 1289 991 Wait 265 | 47 209 9 Move 2081 | 184 1011 886 Hop . | . . . Pick Up 51 | 11 23 17 Fast Attach . | . . . Attach 21 | 7 4 10 Detach . | . . . Swap 17 | . 6 11 Drop 28 | . 14 14 Fire 67 | 1 22 44 Melee . | . . . Ram . | . . . Kick . | . . . Crush . | . . . Escape Stasis . | . . . Rewire . | . . . Trap . | . . . Miscellaneous . | . . . Route ------- -11/Scrapyard -10/Materials (discovered 5 exits: [*Mat x3] / [*Min] / [*Sub]) -10/Subcaves (discovered 1 exit: [*Scr]) History --------- Turn | Location | Event 20 | -11/Scrapyard | Discovered new exit (range 16) 349 | -11/Scrapyard | Entered Materials 350 | -10/Materials | Build established: Mutant 694 | -10/Materials | Discovered new exit (range 16) 848 | -10/Materials | Discovered new exit (range 9) 1148 | -10/Materials | Discovered new exit (range 16) 1496 | -10/Materials | Discovered new exit (range 8) 1643 | -10/Materials | Discovered new exit (range 7) 2297 | -10/Materials | Entered Subcaves 2298 | -10/Subcaves | Approached by a straggling Scientist 2419 | -10/Subcaves | Learned location of Zion (-7) 2419 | -10/Subcaves | Met a Zionite searching for "candidates" 2435 | -10/Subcaves | Ambushed by swarm of Subdwellers 2436 | -10/Subcaves | Ambushed by Subdwellers from Twisted Machinery 2436 | -10/Subcaves | Ambushed by Subdwellers from Twisted Machinery 2457 | -10/Subcaves | Core integrity fell below 50% 2578 | -10/Subcaves | Learned location of Mines (-10) 3271 | -10/Subcaves | Shifting Twisted Machinery released Mak. Thermal Plating 3288 | -10/Subcaves | Shifting Twisted Machinery released Sub. Optics 3513 | -10/Subcaves | Shifting Twisted Machinery released Battle Rifle 3566 | -10/Subcaves | Shifting Twisted Machinery released Battle Cannon 3746 | -10/Subcaves | Ambushed by Subdweller buried in earth 3755 | -10/Subcaves | Ambushed by Subdweller buried in earth 3764 | -10/Subcaves | Ambushed by Subdweller buried in earth 3765 | -10/Subcaves | Core integrity fell below 20% 3804 | -10/Subcaves | Lost 7 parts (2n1u4w) 3873 | -10/Subcaves | A swath of the cavern ceiling suddenly collapsed 4120 | -10/Subcaves | Build established: Scavenger-Mutant 4265 | -10/Subcaves | Destroyed by DU-22E(R) with Subdweller Machine Gun Last Messages --------------- 03851_ Dropped Scrap Shield Fragment. 03852_ The unstable cave ceiling collapses. 03852_ Dropped Scrap Shield Fragment. 03860_ Acquired Sub. Machine Gun. 03865_ Acquired 3 matter. 03867_ The unstable cave ceiling collapses. A swath of the cavern ceiling suddenly collapses. 03887_ Acquired Battle Cannon. 03908_ The unstable cave ceiling collapses. 04027_ Acquired 11 matter. 04256_ Carbon-fiber Leg destroyed. 04258_ Neutrino Core destroyed. 04259_ HV Slug penetrates LT-6J0(R). 04259_ LT-6J0(R) suffers critical hit (Destroy). 04262_ HV Slug penetrates LT-6J0(R). 04262_ LT-6J0(R) suffers critical hit (Destroy). 04262_ Destroyed Sub. Optics. 04262_ LT-6J0(R) knocked back. 04262_ HV Slug penetrates LT-6J0(R). 04263_ Bore Cannon destroyed. Map ----- +----------------------------------------------------+ | ?????????????????????????????????????????????????? | | ????????????????????#????????????????????????????? | | ????????????????????# ???????????????????????????? | | ????????????????????? ####???????????????????????? | | ?????????????????????? #???????????????????????? | | ???????????????????#### ###??????????????????????? | | ???#####???????????# #" " #?????######???????????? | | ???# ##??????????# ##???## #???????????? | | ???# ##?######### * ##### ##????###???? | | ????# ### ## ## # # #??### ###?? | | ????# ##### #?? | | ???## ### " "! ##? | | ## # # # # # ######" # #? | | ######## ####????# " ## #?? | | ## ##??????## %%#??######& " ## #?? | | #####????????## ##R##?# ## # " "## ##? | | #??????######### ## ### " ## #? | | #??????######### ## ### ### ##? | | #?????### ### ##""## # ### #? | | ### ????#### ## """#### #?## ##? | | ??## ????### ### "#"" #?# ### #? | | ???## ???### ## # ######?### ### ##? | | ?????# ##### """ " ##???????### ### #? | | ??????##### ! """ " R ####??????# ## ###? | | #####?## #####"" ###??????## # #??? | | ######## ! ######"""@ "##??????# #??? | | # #### ###?## """ #???????### ##??? | | ? #### ##### #?????????## ##???? | | ?? ### ### ;; ###??###???### ##????? | | ?# ##" # ;###??# ##??# #?????? | | ### ## ##;& ##?# #### #?????? | | ### ## ! & & =] #?# ## ##?????? | | # ### !! ! ### "#" ##??????? | | ## ### # "#"""#""## ##???????? | | ## ### # ## # "#""""#"#"###????????? | | ## ### ; "#"##""#""#??????????? | | ## #" #""# #"""###??????????? | | # #" "#" #### "##?##"""""#??????????? | | # " ### ######""###"#??????????? | | "##" "# ##"#""####??????????? | | ###"" "%""#""""""#????????????? | | ##### ####"" """ ####"##"###????????????? | | ####### ####""""" #########"""## ?????????????? | | ####### # ##""""[ ######??#"###???????????????? | | ##### """ ##???###?????????????????? | | ### " ###???????????????????????? | | #### ############ ##????????????????????????? | | ##### ###### ###### ##????????????????????????? | | #########??????????## ??????????????????????????? | | ???#####????????????? ?????????????????????????? | +----------------------------------------------------+ Best States ------------- Heat Dissipation 25 Energy Generation 19 Energy Capacity 315 Matter Stores 300 Matter Capacity 300 Sight Range 16 Terrain Scan Density 10 Evasion (%) 50 Recoil Reduction 2 Item Schematics ----------------- None Robot Schematics ------------------ None Fabricated ------------ Nothing Repaired ---------- Nothing Alien Tech Used ----------------- None Achievements -------------- Crack Shot Please Form A Line Challenges ------------ None Game ------ Seed TrapBlastGenerator Manual? 0 Play Time 00:45:51 Cumulative 3.0 hours Start 2025.05.29 @ 22:00:21 End 2025.05.29 @ 22:50:47 Sessions 1 Manual Loads 0 Difficulty Rogue Special Mode None Game No. 2 Rogue 2 Adventurer 0 Explorer 0 Win Type - Total 0 Types 0/0/0/0/0/0/0/0/0/0 Lore% 0 Gallery% 4 Achievement% 5 Wizard Run 0 Options --------- Layout 0 ASCII 0 Keyboard 0 Movement Mouse Keybinds 0 Fullscreen 1 Font 18/SmallcapsGlow Map View 76x50 Zoom Use 0% Tactical HUD 1 Map Filters NONE Filters NONE Steam X RUN: ae6d165a-5100-49a2-bb6f-1d2d103f46e0